Cogmind - Beta 17 @@@ ROGUE MODE // 2026.08.12 @ 16:30:56 Player: Blaj Result: Destroyed by U3-ZVE(R) with Subdweller Machine Gun Performance ------------- Evolutions (0) 0 Regions Visited (2) 400 Robots Destroyed (34) 170 Value Destroyed (991) 991 Prototype IDs (2) 40 Alien Tech Used (0) 0 Bonus (0) 0 TOTAL SCORE: 1601 Bonus ------- None Cogmind --------- Core Integrity 0/250 Matter 270/300 Energy 72/100 System Corruption 0% Temperature Cool (0) Movement Rolling (110) Location -10/Subcaves Parts ------- > --- POWER (1) -------- Subdweller Power Source > --- PROPULSION (2) --- Subdweller Monowheel Subdweller Monowheel > --- UTILITY (2) ------ (None) > --- WEAPON (2) ------- Subdweller Laser Subdweller Beam Cannon > --- INVENTORY (5) ---- Disposable Heat Sink Seismic Detector Hacking Suite Multitool Peak State ------------ > --- POWER ------------ Subdweller Power Source > --- PROPULSION ------- Subdweller Monowheel Subdweller Monowheel > --- UTILITY ---------- Scrap Shield > --- WEAPON ----------- Subdweller Beam Cannon Subdweller Beam Cannon > --- INVENTORY -------- Disposable Heat Sink Seismic Detector Hacking Suite Subdweller Beam Cannon Grenade Launcher [Rating: 14] Favorites ----------- Power Ion Engine Engine Ion Engine Propulsion Aluminum Leg Leg Aluminum Leg Wheel Subdweller Monowheel Utility Medium Storage Unit Device Seismic Detector Storage Medium Storage Unit Processor Signal Interpreter Protection Light Armor Plating Weapon Subdweller Beam Cannon Energy Gun Small Laser Energy Cannon Subdweller Beam Cannon Ballistic Cannon Light Cannon Launcher Grenade Launcher Build | -11 -10 -10 ------- Run | Yrd Mat Sub Slots Evolved . | . . . Power . | . . . Propulsion . | . . . Utility . | . . . Weapon . | . . . Parts Attached 25 | 1 8 16 Power 2 | . . 2 Engine 2 | . . 2 Core . | . . . Reactor . | . . . Propulsion 6 | . 1 5 Treads . | . . . Leg 2 | . 1 1 Wheel 4 | . . 4 Hover . | . . . Flight . | . . . Utility 8 | 1 5 2 Device 2 | 1 1 . Storage 2 | . 2 . Processor 2 | . 1 1 Hackware . | . . . Protection 2 | . 1 1 Artifact . | . . . Weapon 9 | . 2 7 Energy Gun 3 | . 1 2 Energy Cannon 4 | . . 4 Ballistic Gun . | . . . Ballistic Cannon 1 | . 1 . Launcher 1 | . . 1 Special Weapon . | . . . Impact Weapon . | . . . Slashing Weapon . | . . . Piercing Weapon . | . . . Special Melee Weapon . | . . . Unidentified Prototypes . | . . . Parts Lost 5 | . . 5 Power 2 | . . 2 Propulsion 1 | . . 1 Utility 1 | . . 1 Weapon 1 | . . 1 Highest Loss Streak 2 | . . 2 To Critical Strikes . | . . . Average Backups 7 | 6 8 6 Power . | 1 1 . Propulsion . | 4 1 . Utility 3 | . 3 3 Weapon 2 | 1 1 2 Tool/Special . | . . . Unused Backups 21 | 6 4 11 Power 2 | 1 . 1 Propulsion 7 | 2 4 1 Utility 4 | 1 . 3 Weapon 7 | 2 . 5 Tool/Special 1 | . . 1 Average Slot Usage (%) 94 | . 100 90 Engine 13 | . 14 13 Leg 18 | . 28 10 Wheel 9 | . . 17 Device 4 | . 7 1 Storage 9 | . 14 5 Protection 9 | . 6 12 Energy Gun 12 | . 23 3 Energy Cannon 9 | . . 17 Ballistic Cannon 4 | . 4 3 Launcher 1 | . . 2 Peak Build Rating 14 | 7 8 14 Average Rating 9 | 6 7 11 On Entrance 7 | 6 7 8 Avg Prop Armor Cover (%) 4 | . . 4 Naked Turns . | . . . Heaviest Build 39 | 14 22 39 Greatest Support 40 | 20 20 40 Greatest Overweight (x) 2 | . 1 2 Average Overweight (x) . | . . . Largest Inventory Capacity 20 | 8 20 10 Average Capacity 8 | 8 9 7 Most Carried 10 | 6 10 10 Average Carried 7 | 6 8 6 Final Capacity 10 | 8 10 5 Final Carried 10 | 6 10 4 Class Distribution -------------------- 65% | Mutant 31% | Subdweller-Mutant Dominant Class ---------------- Mutant | -10/Materials Subdweller-Mutant | -10/Subcaves Resources | -11 -10 -10 ----------- Run | Yrd Mat Sub Matter Collected 854 | 210 164 480 Remotely . | . . . Salvage Created 1129 | 94 424 611 Parts 65 | 3 25 37 Haulers Intercepted 1 | . 1 . Recyclers Shooed 1 | . 1 . Parts Field Recycled . | . . . Retrieved Matter . | . . . Parts Self-Destructed 25 | . . 25 Prevented . | . . . Parts Restored . | . . . Kills | -11 -10 -10 ------- Run | Yrd Mat Sub Combat Hostiles Destroyed 27 | . 6 21 Guns 3 | . 3 . Cannons 14 | . 3 11 AOE 10 | . . 10 Classes Destroyed 9 | 2 3 4 Tunneler 1 | 1 . . Hauler 1 | . 1 . Recycler 3 | 1 2 . Operator 2 | . 2 . Swarmer 5 | . . 5 Grunt 7 | . 6 1 Sentry 1 | . . 1 Artisan 2 | . . 2 Subdweller 14 | . . 14 Best Kill Streak 4 | 2 2 4 Combat Bots Only 4 | . 2 4 Max Kills in Single Turn 2 | 1 1 2 Gunslinging . | . . . Exploded 2 | . . 2 Melee . | . . . Uniques/NPCs Destroyed . | . . . Combat | -11 -10 -10 -------- Run | Yrd Mat Sub Hostile Shots Fired 108 | . 26 82 Missed 38 | . 8 30 Hits 70 | . 18 52 Projectile 70 | . 18 52 AOE 5 | . . 5 Critical Strikes 1 | . . 1 Damage Taken 1471 | . 236 1235 Core 251 | . 28 223 Absorbed by Shields . | . . . Core Remaining (%) 100 | 100 . . Volleys Fired 121 | 4 41 76 Largest 2 | 2 2 2 Hottest 160 | 90 90 160 Shots Fired 194 | 8 76 110 Gun 92 | 8 63 21 Cannon 83 | . 13 70 Launcher 19 | . . 19 Special . | . . . Kinetic 18 | . 13 5 Thermal 157 | 8 63 86 Explosive 19 | . . 19 Electromagnetic . | . . . Robot Hit Streak 15 | 4 9 15 Robot Miss Streak 4 | 2 4 1 Penetration Max . | . . . Secondary Targets . | . . . Shots Hit Robots 123 | 4 47 72 Core Hits 61 | 3 23 35 Critical Kills . | . . . Critical Parts Destroyed . | . . . Critical Strikes 1 | . 1 . Blast 1 | . 1 . Melee Attacks . | . . . Impact . | . . . Slashing . | . . . Piercing . | . . . Sneak Attacks . | . . . Combat Hostiles . | . . . Follow-up Attacks . | . . . Damage Inflicted 3145 | 47 629 2469 Guns 767 | 47 424 296 Cannons 1433 | . 194 1239 Explosions 934 | . . 934 Melee . | . . . Ramming 11 | . 11 . Kinetic 267 | . 194 73 Thermal 1933 | 47 424 1462 Explosive 934 | . . 934 Electromagnetic . | . . . Impact . | . . . Slashing . | . . . Piercing . | . . . Highest Corruption . | . . . Average Corruption . | . . . Corruption Purged . | . . . Corruption Blocked . | . . . Overload Shots . | . . . Overflow Damage 26 | . . 26 Projectiles 21 | . . 21 Explosions 5 | . . 5 Melee . | . . . Knockbacks 2 | . 2 . Impact 1 | . 1 . Kinetic 1 | . 1 . Secondary . | . . . Self-Inflicted Damage 33 | . . 33 Shots 2 | . . 2 Rammed . | . . . Targets Rammed 2 | . 2 . Kicked 2 | . 2 . Crushed . | . . . Highest Temperature 183 | 120 183 156 Average Temperature 47 | 61 52 39 Received Heat Transfer 372 | . 126 246 Siege Activations . | . . . Martial Activations . | . . . Shielding Activations . | . . . Robots Disrupted . | . . . Combat Hostiles . | . . . Robots Corrupted . | . . . Combat Hostiles . | . . . Parts Fried . | . . . Impact Corruptions . | . . . Robots Melted . | . . . Combat Hostiles . | . . . Parts Melted 7 | . . 7 Heat Transferred 3196 | 136 1081 1979 Parts Sabotaged . | . . . Parts Stolen . | . . . Parts Stripped . | . . . Power Chain Reactions . | . . . Alert | -11 -10 -10 ------- Run | Yrd Mat Sub Maximum Alert Level . | . . . Low Security (%) 100 | 100 100 . Level 1 . | . . . Level 2 . | . . . Level 3 . | . . . Level 4 . | . . . Level 5 . | . . . High Security . | . . . Max Security . | . . . Peak Influence 73 | 10 73 . Initial . | . . . Average 17 | 4 17 . Influence Increases 494 | 10 229 255 Destroy 0b10 Robot/C 260 | . 120 140 Destroy 0b10 Robot/NC 35 | 10 25 . Destroy Leader 52 | . 42 10 Successful Hack 27 | . 27 . Lose Combat Pursuer 120 | . 15 105 Influence Decreases 443 | 10 214 219 Entered New Map 8 | . . 8 Time Decay 405 | 10 214 181 Lost Part 30 | . . 30 Squads Dispatched 2 | . 2 . Investigation . | . . . Extermination . | . . . Reinforcement 2 | . 2 . Assault . | . . . Garrison . | . . . Intercept . | . . . Searches Triggered . | . . . Construction Impeded . | . . . Haulers Reinforced . | . . . Active Scanning Responses . | . . . Cargo Convoy Interrupts . | . . . Stealth | -11 -10 -10 --------- Run | Yrd Mat Sub Distress Signals 1 | . 1 . Communications Jammed . | . . . Distress Signals . | . . . Times Spotted 39 | . 16 23 Peak Tracking Total 5 | . 5 4 Tactical Retreats 4 | . 1 3 Traps | -11 -10 -10 ------- Run | Yrd Mat Sub Traps Triggered 1 | . . 1 Indirectly . | . . . Trap Hack Attempts . | . . . Triggered . | . . . Disarmed . | . . . Reprogrammed . | . . . Reused . | . . . Traps Extracted . | . . . Installed . | . . . Triggered . | . . . Machines | -11 -10 -10 ---------- Run | Yrd Mat Sub Machines Disabled 2 | . . 2 Max in Single Turn 2 | . . 2 Machines Repaired . | . . . Machines Dismantled . | . . . Machines Sabotaged . | . . . Overloaded Fab Kills . | . . . Hacking | -11 -10 -10 --------- Run | Yrd Mat Sub Machines Accessed 6 | . 6 . Terminals 6 | . 6 . Fabricators . | . . . Repair Stations . | . . . Recycling Units . | . . . Scanalyzers . | . . . Garrison Access . | . . . Total Hacks 23 | . 23 . Successful 9 | . 9 . Failed 14 | . 14 . Catastrophic 3 | . 3 . Database Lockouts . | . . . Manual 11 | . 11 . Terminals 23 | . 23 . Fabricators . | . . . Repair Stations . | . . . Recycling Units . | . . . Scanalyzers . | . . . Garrison Access . | . . . Terminal Hacks 7 | . 7 . Prototype ID Bank 1 | . 1 . Emergency Access Points 1 | . 1 . Locate Traps 3 | . 3 . Hauler Manifests 1 | . 1 . Zone Layout 1 | . 1 . Fabricator Hacks . | . . . Repair Station Hacks . | . . . Recycling Unit Hacks . | . . . Scanalyzer . | . . . Garrison Access Hacks . | . . . Unauthorized Hacks 2 | . 2 . Terminals 2 | . 2 . Operators 2 | . 2 . Fabricators . | . . . Repair Stations . | . . . Recycling Units . | . . . Scanalyzers . | . . . Garrison Access . | . . . Data Cores Recovered . | . . . Used . | . . . Hacking Detections 6 | . 6 . Full Trace Events 1 | . 1 . Feedback Events . | . . . Feedback Blocked . | . . . Robot Schematics Acquired . | . . . Robots Built . | . . . Authchips . | . . . Time . | . . . Total Robot Build Rating . | . . . Part Schematics Acquired . | . . . Parts Built . | . . . Authchips . | . . . Time . | . . . Total Part Build Rating . | . . . Part Studies Acquired . | . . . Parts Repaired . | . . . Time . | . . . Parts Recycled . | . . . Recycled Matter . | . . . Retrieved Matter . | . . . Retrieved Components . | . . . Parts Scanalyzed . | . . . Part Schematics Acquired . | . . . Parts Damaged . | . . . Bothacking | -11 -10 -10 ------------ Run | Yrd Mat Sub Used RIF Installer . | . . . Robots Hacked . | . . . Non-combat . | . . . Combat . | . . . Robot Hacks Applied . | . . . Relay Couplers Released . | . . . Fabnet Peak Effective % . | . . . Robots Rewired . | . . . Allies Hacked . | . . . Hacks Repelled . | . . . Allies | -11 -10 -10 -------- Run | Yrd Mat Sub Total Allies . | . . . Largest Group . | . . . Highest-Rated Group . | . . . Highest-Rated Ally . | . . . Total Orders . | . . . Ally Attacks . | . . . Total Damage . | . . . Kills . | . . . Allies Corrupted . | . . . Allies Melted . | . . . Intel | -11 -10 -10 ------- Run | Yrd Mat Sub Active Infowar (turns) 595 | 7 460 128 Seismic 595 | 7 460 128 Robot Analysis Total . | . . . Derelict Logs Recovered 2 | . . 2 Drone Launches . | . . . Drone Recoveries . | . . . Exploration | -11 -10 -10 ------------- Run | Yrd Mat Sub Turns Passed 2162 | 26 914 1222 Spaces Moved 1243 | 11 530 702 Core . | . . . Treads . | . . . Legs 691 | 11 530 150 Wheels 552 | . . 552 Hover . | . . . Flight . | . . . Fastest Speed 110 | 120 120 110 Average Speed 130 | 120 136 125 Slowest Speed 260 | 120 190 260 Overloaded Moves . | . . . Propulsion Burnouts . | . . . Robots Hopped . | . . . Potential Cave-ins . | . . . Cave-ins Triggered . | . . . Exploration Rate (%) 44 | 2 93 38 Regions Visited 2 Branch Regions 1 Pre-discovered Areas . | . . . Known Exits Taken . | . . . Unknown Exits Taken 2 | 1 1 . Scrap Searched 8 | . . 8 Spaces Dug . | . . . Terrain Destroyed 92 | . . 92 Melee . | . . . Projectile 6 | . . 6 AOE 86 | . . 86 Terrain Rammed . | . . . Walls Destroyed . | . . . Machines Disabled . | . . . Actions | -11 -10 -10 --------- Run | Yrd Mat Sub Total 1586 | 15 643 928 Wait 123 | . 37 86 Move 1241 | 10 529 702 Hop . | . . . Pick Up 20 | . 11 9 Fast Attach 11 | 1 2 8 Attach 5 | . 1 4 Detach 4 | . 1 3 Swap 29 | . 10 19 Drop 26 | . 9 17 Fire 121 | 4 41 76 Melee . | . . . Ram . | . . . Kick 2 | . 2 . Crush . | . . . Escape Stasis . | . . . Rewire . | . . . Trap . | . . . Miscellaneous 4 | . . 4 Route ------- -11/Scrapyard -10/Materials (discovered 5 exits: *Mat x2 / [*Min x2] / [*Sub]) -10/Subcaves (discovered 2 exits: *Mat x2) History --------- Turn | Location | Event 14 | -11/Scrapyard | Discovered new exit (range 2) 27 | -11/Scrapyard | Entered Materials 62 | -10/Materials | Discovered new exit (range 8) 305 | -10/Materials | Build established: Mutant 435 | -10/Materials | Discovered new exit (range 5) 454 | -10/Materials | Identified exit to Materials 537 | -10/Materials | Discovered exit to Materials (range 16) 700 | -10/Materials | Discovered new exit (range 16) 777 | -10/Materials | Discovered new exit (range 10) 941 | -10/Materials | Entered Subcaves 942 | -10/Subcaves | Approached by a straggling Scientist 960 | -10/Subcaves | Learned Materials terminal intel 1015 | -10/Subcaves | Ambushed by angry Subdweller bent on revenge 1016 | -10/Subcaves | Ambushed by Subdweller buried in earth 1018 | -10/Subcaves | Ambushed by Subdweller buried in earth 1019 | -10/Subcaves | Ambushed by Subdweller buried in earth 1233 | -10/Subcaves | Ambushed by Subdweller buried in earth 1338 | -10/Subcaves | Discovered new exit (range 5) 1379 | -10/Subcaves | Core integrity fell below 50% 1414 | -10/Subcaves | Shifting Twisted Machinery released Scrap Shield 1421 | -10/Subcaves | Shifting Twisted Machinery released Sub. Laser 1463 | -10/Subcaves | Identified exit to Materials 1729 | -10/Subcaves | Build established: Subdweller-Mutant 1768 | -10/Subcaves | Discovered exit to Materials (range 12) 2149 | -10/Subcaves | Core integrity fell below 20% 2163 | -10/Subcaves | Destroyed by U3-ZVE(R) with Subdweller Machine Gun Last Messages --------------- 02058_ Dropped Sub. Monowheel. 02061_ Acquired Sub. Monowheel. 02069_ 7L-2FB(R): "SUBMAD!" 02083_ Sub. Monowheel melted. 02083_ 7L-2FB(R) destroyed. 02088_ Scrap Shield Fragment affixed to Scrap Shield (+49). 02090_ Scrap Shield Fragment affixed to Scrap Shield (+48). 02105_ Acquired 20 matter. 02107_ Dropped Broken Sub. Beam Cannon. 02107_ Acquired Sub. Laser. 02119_ Grenade Launcher destroyed. 02124_ PL-21Y(R) destroyed. 02133_ Sub. Power Source shoots sparks and powers down. 02133_ Scrap Shield destroyed. 02151_ Sub. Optics melted. 02151_ Sub. Power Source melted. 02151_ RV-RBI(R) destroyed. Map ----- +----------------------------------------------------+ | ???????????????????# # | | ??????????????? % ## < ## # | | ??????????????? % ####### ## """"##" # | | ?????????????? ##?????# #### ###### | | ????????????" #####??????####??##### ##????? | | ???????????#" ##???????????????????####?????? | | ???????????#" % # #????????????????????????????? | | ???????????### # #????????????????????????????? | | ?????????????##" ##???????????????????????????? | | ?????????????## #???????????????????????????? | | ?????????????# ##??????????????????????????? | | ????????????? #??????????????????????????? | | ????????????? ???????????????????????????? | | ?????????????### = ????????????????????????????? | | ??????????????## =%#?????????????????????????????? | | ?????????????## #?????????????????????????????? | | ????????????## ##????????????????????????????? | | ???????????##" ######???????????????????????? | | ???????????#" #???????????????????????? | | ???????????#"%* #?????####???????????????? | | ????????#??## ] # ## ########""###?????####????? | | ???????"# ## =#& """"" "##??### #####? | | ???????""" =% """" ""##?# ] ## | | ??????"""" ! %!* "###"% """ # | | ???????##%&& "# "###"""#""" "" = """""" | | ???????#*&! =[##@ ##""# "# #### " """" | | ????????### &%& "# #" "##?## """" | | ??????????## ##R##### # # #####" "" | | ???????????# ####???#### # #"" "" | | ???????????# " #????????" # """ """" | | ???????????# ## "#???????"?""## "" """ | | ???????????## ## # ???????? #"######## #""##### | | ???????????# #?# """?????? ?##???????######???? | | ???????????## #?"""# # ???? ????????????????????? | | ????????????# ?# "##??????????????????????????? | | ????????????## ? ????????????????????????????? | | ?????????????# ? ????????????????????????????? | | ?????????????? ????????????????????????????? | | ???????????????? ????????????????????????????? | | ????????????????? ????????????????????????????? | | ?????????????????????????????????????????????????? | | ?????????????????????????????????????????????????? | | ?????????????????????????????????????????????????? | | ?????????????????????????????????????????????????? | | ?????????????????????????????????????????????????? | | ?????????????????????????????????????????????????? | | ?????????????????????????????????????????????????? | | ??????????????????????????????????????????????#### | | ??????????????????????????????????????????????# | | ??????????????????????????????????????????????# | +----------------------------------------------------+ Best States ------------- Heat Dissipation 35 Energy Generation 15 Energy Capacity 250 Matter Stores 300 Matter Capacity 300 Sight Range 16 Terrain Scan Density 10 Armor Coverage 800 Evasion (%) 55 Item Schematics ----------------- None Robot Schematics ------------------ None Fabricated ------------ Nothing Repaired ---------- Nothing Studied --------- None Alien Tech Used ----------------- None Achievements -------------- Do Not Disturb Survival Of The Most Covered Challenges ------------ None Game ------ Seed BlanketStasisBoregun Manual? 0 Play Time 00:28:15 Cumulative 265.7 hours Start 2026.08.12 @ 15:54:07 End 2026.08.12 @ 16:30:56 Sessions 1 Manual Loads 0 Difficulty Rogue Special Mode None Game No. 70 Rogue 70 Adventurer 0 Explorer 0 Win Type - Total 10 Types 5/0/2/0/1/1/0/1/0/0 Lore% 65 Gallery% 71 Achievement% 53 Wizard Run 0 Options --------- Layout 2 ASCII 0 Keyboard 1 Movement Vi Keybinds 0 Fullscreen 1 Font 24/Smallcaps Map View 50x44 Zoom Use 0% Tactical HUD 1 Map Filters NONE Filters NONE Steam 1 RUN: 8f7aa2b2-e705-4257-8a82-08be55754213